Workbook

Sheet 1 vakantierooster
B2: Vakantierooster | D2: ?
B3: 2025-2026
B6: Naam school | C6: De Trinoom
Q7: =ROUND(B7*1659,0) -> 0 | R7: =ROUND(208/340*Q7,0) -> 0
B9: Lestijdenregeling
B10: groepen | I10: 1 | K10: 2 | M10: 3 | R10: Les | S10: Niet Les
B11: aantal lesuren per week | I11: 25 | K11: 25 | M11: 25 | R11: 104 | S11: =170-R11 -> 66 | T11: =R11/170 -> 0.6117647059 | U11: =S11/170 -> 0.3882352941
B12: lesuren per week x 52 weken | I12: =52*I11 -> 1300 | K12: =52*K11 -> 1300 | M12: =52*M11 -> 1300 | R12: 208 | S12: =340-R12 -> 132 | T12: =R12/340 -> 0.6117647059 | U12: =S12/340 -> 0.3882352941
B13: aant. lesuren op woensdag (ivm 30 sept. 2026) | I13: 3.5 | K13: 3.5 | M13: 3.5
E15: totaal | I15: =I12+I13 -> 1303.5 | K15: =K12+K13 -> 1303.5 | M15: =M12+M13 -> 1303.5 | R15: 930 | S15: =1659-R15 -> 729 | T15: =R15/1659 -> 0.5605786618 | U15: =S15/1659 -> 0.4394213382
B18: Vakanties en bijzondere dagen
B20: studiedag/lesvrije dag | C20: 2012-08-20
B21: Herfstvakantie | C21: 2025-10-18 | E21: 2025-10-26 | I21: =I11 -> 25 | K21: =K11 -> 25 | M21: =M11 -> 25
B22: Kerstvakantie | C22: 2025-12-20 | E22: 2026-01-04 | I22: =2*I11 -> 50 | K22: =2*K11 -> 50 | M22: =2*M11 -> 50
B23: aanbevolen extra dag | C23: 2025-12-19 | E23: 2025-12-19
B24: Voorjaarsvakantie | C24: 2026-02-14 | E24: 2026-02-22 | I24: =I11 -> 25 | K24: =K11 -> 25 | M24: =M11 -> 25
B25: Goede vrijdag/2e Paasdag | C25: 2026-04-03 | E25: 2026-04-06 | I25: 10.5 | K25: 10.5 | M25: 10.5
B26: Meivakantie (incl. Koningsdag en Bevrijdingsdag) | C26: 2026-04-25 | E26: 2026-05-10 | I26: =2*I11 -> 50 | K26: =2*K11 -> 50 | M26: =2*M11 -> 50
B27: Hemelvaartsdag | C27: 2026-05-14 | E27: 2026-05-14 | I27: 5.5 | K27: 5.5 | M27: 5.5
B28: dag na Hemelvaartsdag | C28: 2026-05-15 | E28: 2026-05-15 | I28: 5 | K28: 5 | M28: 5
B29: 2e Pinksterdag | C29: 2026-05-25 | E29: 2026-05-25 | I29: 5.5 | K29: 5.5 | M29: 5.5
B30: Zomervakantie | C30: 2026-07-18 | E30: 2026-08-30 | I30: =6*I11 -> 150 | K30: =6*K11 -> 150 | M30: =6*M11 -> 150
B35: Studiedagen en extra vrije dagen
B37: Lesvrije dag: studiedag | C37: 2025-10-27 | I37: 5.5 | K37: 5.5 | M37: 5.5
B38: Lesvrije dag (analyse) | C38: 2025-11-28 | I38: 5 | K38: 5 | M38: 5
B39: Lesvrije middag | C39: 2025-12-05 | I39: 1.5 | K39: 1.5 | M39: 1.5
B40: Lesvrije middag | C40: 2025-12-19 | I40: 1.5 | K40: 1.5 | M40: 1.5
B41: Lesvrije dag: studiedag | C41: 2026-02-23 | I41: 5.5 | K41: 5.5 | M41: 5.5
B42: Lesvrije dag (analyse) | C42: 2026-05-18 | I42: 5.5 | K42: 5.5 | M42: 5.5
B43: Lesvrije middag | C43: 2026-07-17 | I43: 1.5 | K43: 1.5 | M43: 1.5
E45: totaal | I45: =SUM(I21:I43) -> 352.5 | K45: =SUM(K21:K43) -> 352.5 | M45: =SUM(M21:M43) -> 352.5
B49: aantal gewenste lesuren | E49: totaal | I49: =I15-I45 -> 951 | K49: =K15-K45 -> 951 | M49: =M15-M45 -> 951
D50: ?

Sheet 2 jaarplanner
B2: Jaarplanning | D2: ?
B3: 2025-2026
A7: 33 | B7: do | C7: 2025-08-14 | D7: Zomervakantie
B8: vr | C8: 2025-08-15 | D8: Zomervakantie
B9: za | C9: 2025-08-16
B10: zo | C10: 2025-08-17
A11: 34 | B11: ma | C11: 2025-08-18 | D11: Zomervakantie
B12: di | C12: 2025-08-19 | D12: Zomervakantie
B13: wo | C13: 2025-08-20 | D13: Zomervakantie
B14: do | C14: 2025-08-21 | D14: Zomervakantie
B15: vr | C15: 2025-08-22 | D15: Zomervakantie
B16: za | C16: 2025-08-23
B17: zo | C17: 2025-08-24
A18: 35 | B18: ma | C18: 2025-08-25
B19: di | C19: 2025-08-26
B20: wo | C20: 2025-08-27
B21: do | C21: 2025-08-28 | D21: Startbrief school en startbrief bouw + gespreksplanner activeren
B22: vr | C22: 2025-08-29
B23: za | C23: 2025-08-30
B24: zo | C24: 2025-08-31 | D24: Geboortedag Maria Montessori
A25: 36 | B25: ma | C25: 2025-09-01 | D25: Eerste schooldag
B26: di | C26: 2025-09-02
B27: wo | C27: 2025-09-03
B28: do | C28: 2025-09-04
B29: vr | C29: 2025-09-05 | D29: Groepsbericht sturen per groep
B30: za | C30: 2025-09-06
B31: zo | C31: 2025-09-07
A32: 37 | B32: ma | C32: 2025-09-08 | D32: Startgesprekken
B33: di | C33: 2025-09-09 | D33: Startgesprekken
B34: wo | C34: 2025-09-10 | D34: Startgesprekken
B35: do | C35: 2025-09-11 | D35: Startgesprekken
B36: vr | C36: 2025-09-12 | D36: Startgesprekken
B37: za | C37: 2025-09-13
B38: zo | C38: 2025-09-14
A39: 38 | B39: ma | C39: 2025-09-15 | D39: Kamp
B40: di | C40: 2025-09-16 | D40: Kamp
B41: wo | C41: 2025-09-17 | D41: Kamp
B42: do | C42: 2025-09-18 | D42: Kamp + Dag van de pedagogisch medewerker
B43: vr | C43: 2025-09-19 | D43: Kamp
B44: za | C44: 2025-09-20
B45: zo | C45: 2025-09-21
A46: 39 | B46: ma | C46: 2025-09-22
B47: di | C47: 2025-09-23
B48: wo | C48: 2025-09-24 | D48: Trinoominformatie markt
B49: do | C49: 2025-09-25
B50: vr | C50: 2025-09-26
B51: za | C51: 2025-09-27
B52: zo | C52: 2025-09-28
A53: 40 | B53: ma | C53: 2025-09-29
B54: di | C54: 2025-09-30
B55: wo | C55: 2025-10-01 | D55: Kinderboekenweek thema Vol avontuur
B56: do | C56: 2025-10-02 | D56: Kinderboekenweek
B57: vr | C57: 2025-10-03 | D57: Kinderboekenweek
B58: za | C58: 2025-10-04 | D58: Dierendag
B59: zo | C59: 2025-10-05
A60: 41 | B60: ma | C60: 2025-10-06 | D60: Kinderboekenweek
B61: di | C61: 2025-10-07 | D61: Kinderboekenweek
B62: wo | C62: 2025-10-08 | D62: Kinderboekenweek
B63: do | C63: 2025-10-09 | D63: Kinderboekenweek
B64: vr | C64: 2025-10-10 | D64: Kinderboekenweek + Presentatiemiddag Kinderboekenweek
B65: za | C65: 2025-10-11
B66: zo | C66: 2025-10-12
A67: 42 | B67: ma | C67: 2025-10-13 | D67: Hart & handen
B68: di | C68: 2025-10-14 | D68: Hart & handen + Techniekfestival groep 8
B69: wo | C69: 2025-10-15 | D69: Hart & handen
B70: do | C70: 2025-10-16 | D70: Hart & handen
B71: vr | C71: 2025-10-17 | D71: Hart & handen + Dag van de armoede
B72: za | C72: 2025-10-18
B73: zo | C73: 2025-10-19
A74: 43 | B74: ma | C74: 2025-10-20 | D74: Herfstvakantie
B75: di | C75: 2025-10-21 | D75: Herfstvakantie
B76: wo | C76: 2025-10-22 | D76: Herfstvakantie
B77: do | C77: 2025-10-23 | D77: Herfstvakantie
B78: vr | C78: 2025-10-24 | D78: Herfstvakantie
B79: za | C79: 2025-10-25
B80: zo | C80: 2025-10-26
A81: 44 | B81: ma | C81: 2025-10-27 | D81: Lesvrije dag
B82: di | C82: 2025-10-28
B83: wo | C83: 2025-10-29
B84: do | C84: 2025-10-30
B85: vr | C85: 2025-10-31
B86: za | C86: 2025-11-01
B87: zo | C87: 2025-11-02 | D87: Allerzielen
A88: 45 | B88: ma | C88: 2025-11-03 | D88: Informatieavond voortgezet onderwijs
B89: di | C89: 2025-11-04
B90: wo | C90: 2025-11-05
B91: do | C91: 2025-11-06
B92: vr | C92: 2025-11-07
B93: za | C93: 2025-11-08
B94: zo | C94: 2025-11-09
A95: 46 | B95: ma | C95: 2025-11-10 | D95: Reflectieweek: afname IEP hoofd
B96: di | C96: 2025-11-11 | D96: Reflectieweek: afname IEP hoofd
B97: wo | C97: 2025-11-12 | D97: Reflectieweek: afname IEP hoofd
B98: do | C98: 2025-11-13 | D98: Reflectieweek: afname IEP hoofd
B99: vr | C99: 2025-11-14 | D99: Reflectieweek: afname IEP hoofd
B100: za | C100: 2025-11-15
B101: zo | C101: 2025-11-16
A102: 47 | B102: ma | C102: 2025-11-17 | D102: Reflectieweek: afname IEP hoofd
B103: di | C103: 2025-11-18 | D103: Reflectieweek: afname IEP hoofd
B104: wo | C104: 2025-11-19 | D104: Reflectieweek: afname IEP hoofd
B105: do | C105: 2025-11-20 | D105: Reflectieweek: afname IEP hoofd
B106: vr | C106: 2025-11-21 | D106: Reflectieweek: afname IEP hoofd
B107: za | C107: 2025-11-22
B108: zo | C108: 2025-11-23
A109: 48 | B109: ma | C109: 2025-11-24
B110: di | C110: 2025-11-25
B111: wo | C111: 2025-11-26
B112: do | C112: 2025-11-27
B113: vr | C113: 2025-11-28 | D113: Lesvrije dag
B114: za | C114: 2025-11-29
B115: zo | C115: 2025-11-30 | D115: 1ste zondag advent
A116: 49 | B116: ma | C116: 2025-12-01
B117: di | C117: 2025-12-02
B118: wo | C118: 2025-12-03
B119: do | C119: 2025-12-04
B120: vr | C120: 2025-12-05 | D120: Sinterklaas (vrije middag tot 12.00 uur)
B121: za | C121: 2025-12-06
B122: zo | C122: 2025-12-07 | D122: 2e zondag advent
A123: 50 | B123: ma | C123: 2025-12-08
B124: di | C124: 2025-12-09
B125: wo | C125: 2025-12-10
B126: do | C126: 2025-12-11
B127: vr | C127: 2025-12-12
B128: za | C128: 2025-12-13
B129: zo | C129: 2025-12-14 | D129: 3e zondag advent
A130: 51 | B130: ma | C130: 2025-12-15
B131: di | C131: 2025-12-16 | D131: Gespresplanner activeren
B132: wo | C132: 2025-12-17
B133: do | C133: 2025-12-18 | D133: Kerstdiner- en kerstviering
B134: vr | C134: 2025-12-19 | D134: Vrije middag (tot 12.00 uur)
B135: za | C135: 2025-12-20
B136: zo | C136: 2025-12-21 | D136: 4e zondag advent
A137: 52 | B137: ma | C137: 2025-12-22 | D137: Kerstvakantie
B138: di | C138: 2025-12-23 | D138: Kerstvakantie
B139: wo | C139: 2025-12-24 | D139: Kerstvakantie
B140: do | C140: 2025-12-25 | D140: Kerstvakantie
B141: vr | C141: 2025-12-26 | D141: Kerstvakantie
B142: za | C142: 2025-12-27
B143: zo | C143: 2025-12-28
A144: 1 | B144: ma | C144: 2025-12-29 | D144: Kerstvakantie
B145: di | C145: 2025-12-30 | D145: Kerstvakantie
B146: wo | C146: 2025-12-31 | D146: Kerstvakantie
B147: do | C147: 2026-01-01 | D147: Kerstvakantie
B148: vr | C148: 2026-01-02 | D148: Kerstvakantie
B149: za | C149: 2026-01-03
B150: zo | C150: 2026-01-04
A151: 2 | B151: ma | C151: 2026-01-05
B152: di | C152: 2026-01-06
B153: wo | C153: 2026-01-07
B154: do | C154: 2026-01-08 | D154: Teammeeting
B155: vr | C155: 2026-01-09
B156: za | C156: 2026-01-10
B157: zo | C157: 2026-01-11
A158: 3 | B158: ma | C158: 2026-01-12
B159: di | C159: 2026-01-13
B160: wo | C160: 2026-01-14 | D160: Talentenkaart mee
B161: do | C161: 2026-01-15
B162: vr | C162: 2026-01-16
B163: za | C163: 2026-01-17
B164: zo | C164: 2026-01-18
A165: 4 | B165: ma | C165: 2026-01-19 | D165: Talentenkaartgesprekken + adviesgesprek groep 8
B166: di | C166: 2026-01-20 | D166: Talentenkaartgesprekken + adviesgesprek groep 8
B167: wo | C167: 2026-01-21 | D167: Talentenkaartgesprekken + adviesgesprek groep 8 + Nationale voorleesdagen
B168: do | C168: 2026-01-22 | D168: Talentenkaartgesprekken + adviesgesprek groep 8 + Nationale voorleesdagen
B169: vr | C169: 2026-01-23 | D169: Talentenkaartgesprekken + adviesgesprek groep 8 + Nationale voorleesdagen
B170: za | C170: 2026-01-24
B171: zo | C171: 2026-01-25
A172: 5 | B172: ma | C172: 2026-01-26 | D172: Nationale voorleesdagen
B173: di | C173: 2026-01-27 | D173: Nationale voorleesdagen
B174: wo | C174: 2026-01-28 | D174: Nationale voorleesdagen + Boekenmarkt
B175: do | C175: 2026-01-29 | D175: Nationale voorleesdagen
B176: vr | C176: 2026-01-30 | D176: Nationale voorleesdagen
B177: za | C177: 2026-01-31
B178: zo | C178: 2026-02-01
A179: 6 | B179: ma | C179: 2026-02-02 | D179: Avi + DMT
B180: di | C180: 2026-02-03 | D180: Avi + DMT + Doorstroomtoets
B181: wo | C181: 2026-02-04 | D181: Avi + DMT + Doorstroomtoets
B182: do | C182: 2026-02-05 | D182: Avi + DMT + Doorstroomtoets
B183: vr | C183: 2026-02-06 | D183: Avi + DMT
B184: za | C184: 2026-02-07
B185: zo | C185: 2026-02-08
A186: 7 | B186: ma | C186: 2026-02-09
B187: di | C187: 2026-02-10
B188: wo | C188: 2026-02-11 | D188: Carnaval
B189: do | C189: 2026-02-12
B190: vr | C190: 2026-02-13
B191: za | C191: 2026-02-14 | D191: Valentijnsdag
B192: zo | C192: 2026-02-15
A193: 8 | B193: ma | C193: 2026-02-16 | D193: Voorjaarsvakantie
B194: di | C194: 2026-02-17 | D194: Voorjaarsvakantie
B195: wo | C195: 2026-02-18 | D195: Voorjaarsvakantie
B196: do | C196: 2026-02-19 | D196: Voorjaarsvakantie
B197: vr | C197: 2026-02-20 | D197: Voorjaarsvakantie
B198: za | C198: 2026-02-21
B199: zo | C199: 2026-02-22
A200: 9 | B200: ma | C200: 2026-02-23 | D200: Lesvrije dag
B201: di | C201: 2026-02-24
B202: wo | C202: 2026-02-25
B203: do | C203: 2026-02-26
B204: vr | C204: 2026-02-27
... 177 more rows
